Cogmind - Beta 16 @@@ ROGUE MODE // 2025.11.06 @ 18:40:13 Player: Runagate Result: Destroyed self with Heavy Missile Launcher Performance ------------- Evolutions (4) 2000 Regions Visited (9) 1800 Robots Destroyed (127) 635 Value Destroyed (3026) 3026 Prototype IDs (6) 120 Alien Tech Used (0) 0 Bonus (599) 599 TOTAL SCORE: 8180 Bonus ------- High Alert Combat Kills 11 Follower Combat Kills 588 Cogmind --------- Core Integrity 0/850 Matter 38/300 Energy 100/100 System Corruption 19% Temperature Cool (0) Movement Core (150) Ox2 Location -6/Lower Caves Parts ------- > --- POWER (2) -------- (None) > --- PROPULSION (4) --- (None) > --- UTILITY (6) ------ Advanced Signal Interpreter Improved Hacking Suite > --- WEAPON (3) ------- Heavy Missile Launcher > --- INVENTORY (5) ---- Surge Thruster Surge Thruster Improved Particle Charger Heavy Particle Cannon Peak State ------------ > --- POWER ------------ Heavy Ion Engine Heavy Ion Engine > --- PROPULSION ------- Advanced Treads Advanced Treads Advanced Treads Medium Treads > --- UTILITY ---------- Advanced Heat Sink Advanced Heat Sink High-capacity Storage Unit Advanced Targeting Computer Improved Medium Armor Plating Layered Light Armor Plating > --- WEAPON ----------- Enhanced Autogun Heavy Assault Cannon > --- INVENTORY -------- Micro Nuclear Core Advanced Treads Advanced Treads Advanced Treads Improved Heat Sink Improved Sensor Array Seismic Detector Improved Heavy Armor Plating High-powered Tractor Beam Improved EM Shotgun Improved Medium Laser Improved Medium Laser Heavy Particle Cannon Enhanced Autogun Enhanced Autogun Enhanced Autogun Grenade Launcher Katana [Rating: 57] Favorites ----------- Power Heavy Ion Engine Engine Heavy Ion Engine Propulsion Light Treads Treads Light Treads Hover Unit Improved Gravmag System Flight Unit Surge Thruster Utility High-capacity Storage Unit Device Seismic Detector Storage High-capacity Storage Unit Processor Advanced Targeting Computer Hackware Improved Hacking Suite Protection Improved Light Armor Plating Weapon Heavy Assault Cannon Energy Gun Medium Laser Energy Cannon Advanced Beam Cannon Ballistic Gun Enhanced Autogun Ballistic Cannon Heavy Assault Cannon Launcher Grenade Launcher Impact Weapon Heavy Hammer Build | -11 -10 -9 -8 -8 -8 -6 -6 -6 -6 ------- Run | Yrd Mat Mat Mat Sto Rec Fac Was Fac Low Slots Evolved 8 | . . 2 2 . . 4 . . . Power 1 | . . . . . . 1 . . . Propulsion 2 | . . 2 . . . . . . . Utility 4 | . . . 1 . . 3 . . . Weapon 1 | . . . 1 . . . . . . Parts Attached 95 | 8 9 20 26 11 . 10 . 11 . Power 6 | 1 1 3 . . . 1 . . . Engine 6 | 1 1 3 . . . 1 . . . Core . | . . . . . . . . . . Reactor . | . . . . . . . . . . Propulsion 34 | 2 1 10 6 8 . 1 . 6 . Treads 28 | 2 1 10 6 8 . 1 . . . Leg . | . . . . . . . . . . Wheel . | . . . . . . . . . . Hover 4 | . . . . . . . . 4 . Flight 2 | . . . . . . . . 2 . Utility 28 | 2 3 2 10 1 . 8 . 2 . Device 15 | 1 1 2 5 1 . 5 . . . Storage 5 | 1 2 . 1 . . 1 . . . Processor 2 | . . . 1 . . . . 1 . Hackware 1 | . . . . . . . . 1 . Protection 5 | . . . 3 . . 2 . . . Artifact . | . . . . . . . . . . Weapon 27 | 3 4 5 10 2 . . . 3 . Energy Gun 6 | 3 . . 1 1 . . . 1 . Energy Cannon 2 | . . 1 1 . . . . . . Ballistic Gun 15 | . 4 2 7 1 . . . 1 . Ballistic Cannon 1 | . . . 1 . . . . . . Launcher 2 | . . 1 . . . . . 1 . Special Weapon . | . . . . . . . . . . Impact Weapon 1 | . . 1 . . . . . . . Slashing Weapon . | . . . . . . . . . . Piercing Weapon . | . . . . . . . . . . Special Melee Weapon . | . . . . . . . . . . Unidentified Prototypes 4 | . . 2 1 1 . . . . . Parts Lost 7 | . . . . . . 1 2 4 . Power . | . . . . . . . . . . Propulsion 4 | . . . . . . . 1 3 . Utility 1 | . . . . . . 1 . . . Weapon 2 | . . . . . . . 1 1 . Highest Loss Streak 4 | . . . . . . 1 2 4 . To Critical Strikes . | . . . . . . . . . . Average Backups 15 | 1 7 17 19 20 20 18 15 4 . Power . | . . 1 1 1 1 . . . . Propulsion 2 | . . 2 2 2 3 3 2 . . Utility 4 | . 1 4 5 6 6 5 4 1 . Weapon 8 | . 5 8 10 10 10 9 7 1 . Tool/Special . | . . . . . . . . . . Unused Backups 29 | . 2 7 6 2 . . 8 1 3 Power 5 | . 1 3 . . . . 1 . . Propulsion 5 | . . . . 1 . . 2 . 2 Utility 8 | . . 2 4 . . . . 1 1 Weapon 11 | . 1 2 2 1 . . 5 . . Tool/Special . | . . . . . . . . . . Average Slot Usage (%) 90 | . 99 99 98 90 90 92 69 22 . Engine 10 | . 14 11 9 9 9 13 9 . . Treads 31 | . 28 43 35 36 36 26 19 . . Device 8 | . 13 11 8 3 . 18 9 . . Storage 8 | . 14 11 9 9 9 6 4 . . Processor 5 | . . . 8 9 9 6 4 4 . Protection 3 | . . . . 5 9 7 9 . . Energy Gun 1 | . 5 . 2 4 . . . . . Energy Cannon 2 | . . 9 6 . . . . . . Ballistic Gun 11 | . 22 11 17 4 9 6 . 3 . Ballistic Cannon 3 | . . . . 9 9 6 4 . . Peak Build Rating 57 | 7 10 17 31 38 38 57 54 31 . Average Rating 26 | 6 8 14 26 30 38 50 36 17 . On Entrance 20 | . 7 8 17 28 38 38 57 1 15 Avg Prop Armor Cover (%) 8 | . . . . . . 4 . 9 . Naked Turns 46 | . . . . . . . 37 9 . Heaviest Build 84 | 15 50 56 64 66 66 84 84 7 . Greatest Support 94 | 40 40 80 82 88 88 94 94 40 . Greatest Overweight (x) 2 | . 1 . . . . 1 . 2 . Average Overweight (x) . | . . . . . . . . . . Largest Inventory Capacity 25 | 8 25 20 20 20 20 20 20 5 . Average Capacity 16 | 7 10 20 20 20 20 20 16 5 . Most Carried 20 | 2 11 20 20 20 20 20 19 5 . Average Carried 15 | 1 7 17 19 19 20 19 15 4 . Final Capacity 20 | 8 20 20 20 20 20 20 5 5 5 Final Carried 20 | 2 11 20 20 20 20 19 5 4 4 Class Distribution -------------------- 29% | Mutant 25% | Commander-Gunner 19% | Scavenger-Gunner 9% | Commander-Skirmisher 8% | Scavenger-Mutant 4% | Tank Dominant Class ---------------- Mutant | -10/Materials Scavenger-Mutant | -9/Materials Scavenger-Gunner | -8/Materials Commander-Gunner | -8/Storage Commander-Gunner | -8/Recycling Commander-Skirmisher | -6/Factory Tank | -6/Waste Mutant | -6/Factory Mutant | -6/Lower Caves Resources | -11 -10 -9 -8 -8 -8 -6 -6 -6 -6 ----------- Run | Yrd Mat Mat Mat Sto Rec Fac Was Fac Low Matter Collected 3060 | 280 476 422 804 442 48 510 . 78 . Remotely 126 | . . . . . . 126 . . . Salvage Created 4167 | 350 643 951 1067 580 171 231 . 174 . Parts 273 | 28 40 70 61 39 8 9 . 18 . Haulers Intercepted 9 | . 2 3 2 2 . . . . . Recyclers Shooed 1 | . . 1 . . . . . . . Parts Field Recycled . | . . . . . . . . . . Retrieved Matter . | . . . . . . . . . . Parts Self-Destructed . | . . . . . . . . . . Prevented . | . . . . . . . . . . Parts Restored . | . . . . . . . . . . Kills | -11 -10 -9 -8 -8 -8 -6 -6 -6 -6 ------- Run | Yrd Mat Mat Mat Sto Rec Fac Was Fac Low Combat Hostiles Destroyed 76 | . 14 21 16 11 2 4 . 8 . Guns 37 | . 14 8 8 1 1 1 . 4 . Cannons 27 | . . 8 5 10 1 3 . . . AOE 11 | . . 4 3 . . . . 4 . Classes Destroyed 14 | 3 5 2 2 . . 1 . 1 . Worker 13 | 4 . 4 2 3 . . . . . Builder 3 | . 1 1 . . 1 . . . . Tunneler 10 | 9 . . 1 . . . . . . Hauler 9 | . 2 3 2 2 . . . . . Recycler 5 | 1 1 1 1 . 1 . . . . Operator 1 | . . . 1 . . . . . . Watcher 8 | . 3 2 3 . . . . . . Swarmer 21 | . 6 11 . . . . . 4 . Cutter 4 | . . . . . . . . 4 . Grunt 35 | . 8 4 13 6 . 4 . . . Duelist 1 | . . 1 . . . . . . . Sentry 15 | . . 5 2 6 2 . . . . Hunter 1 | . . . 1 . . . . . . Programmer 1 | . . . . . . 1 . . . Best Kill Streak 8 | 4 7 8 5 3 1 3 . 4 . Combat Bots Only 5 | . 5 4 5 2 1 3 . 4 . Max Kills in Single Turn 4 | 2 1 4 2 2 1 1 . 2 . Gunslinging . | . . . . . . . . . . Exploded 4 | . . 4 2 . . . . 2 . Melee . | . . . . . . . . . . Uniques/NPCs Destroyed . | . . . . . . . . . . Combat | -11 -10 -9 -8 -8 -8 -6 -6 -6 -6 -------- Run | Yrd Mat Mat Mat Sto Rec Fac Was Fac Low Hostile Shots Fired 376 | . 54 74 64 13 4 71 5 91 . Missed 116 | . 10 19 18 6 1 31 . 31 . Hits 260 | . 44 55 46 7 3 40 5 60 . Melee 19 | . . . . . . . 5 14 . Projectile 241 | . 44 55 46 7 3 40 . 46 . Critical Strikes 15 | . . 1 . 3 . 1 4 6 . Part Disruptions 1 | . . . . . . 1 . . . Damage Taken 3886 | . 437 576 739 129 41 413 278 1220 53 Core 1129 | . 114 46 62 14 . 28 40 772 53 Absorbed by Shields 92 | . . . . . . 92 . . . Regen/Repaired (Parts) 160 | . . 79 81 . . . . . . Core Remaining (%) 82 | 100 54 88 . . 86 . . . . Volleys Fired 261 | 26 52 49 51 28 4 25 8 17 1 Largest 3 | 2 2 2 3 2 2 2 2 1 1 Hottest 148 | 100 100 91 148 115 75 75 80 56 39 Shots Fired 544 | 52 104 98 149 50 8 50 14 18 1 Gun 388 | 52 104 57 108 22 4 26 . 15 . Cannon 144 | . . 40 39 28 4 24 9 . . Launcher 12 | . . 1 2 . . . 5 3 1 Special . | . . . . . . . . . . Kinetic 359 | . 92 57 101 36 8 50 9 6 . Thermal 162 | 50 12 40 37 14 . . . 9 . Explosive 12 | . . 1 2 . . . 5 3 1 Electromagnetic 11 | 2 . . 9 . . . . . . Robot Hit Streak 21 | 6 8 15 21 9 14 9 14 17 . Robot Miss Streak 6 | 2 4 6 3 4 . 3 . 2 . Penetration Max 1 | . . . 1 . . . . . . Secondary Targets 4 | . 3 1 . . . . . . . Max Gunslinging Chain 1 | . 1 1 . . . . . . . Shots Hit Robots 322 | 33 65 53 92 24 7 25 13 10 . Core Hits 184 | 14 29 33 48 23 7 11 3 16 . Critical Kills 1 | . . 1 . . . . . . . Critical Parts Destroyed 3 | . 1 . 2 . . . . . . Critical Strikes 23 | 6 1 1 2 5 . 5 . 3 . Burn 8 | 5 . . . . . . . 3 . Meltdown 1 | . . 1 . . . . . . . Destroy 3 | . 1 . 2 . . . . . . Blast 10 | . . . . 5 . 5 . . . Corrupt 1 | 1 . . . . . . . . . Melee Attacks 3 | . . 3 . . . . . . . Impact 3 | . . 3 . . . . . . . Slashing . | . . . . . . . . . . Piercing . | . . . . . . . . . . Sneak Attacks . | . . . . . . . . . . Combat Hostiles . | . . . . . . . . . . Follow-up Attacks . | . . . . . . . . . . Damage Inflicted 8467 | 413 946 1221 2261 1033 240 1053 760 540 . Guns 3703 | 413 925 451 1350 114 50 240 . 160 . Cannons 3364 | . . 594 627 771 142 812 418 . . Explosions 1151 | . . 153 237 89 . . 342 330 . Melee . | . . . . . . . . . . Ramming 249 | . 21 23 47 59 48 1 . 50 . Kinetic 5095 | . 849 451 1250 823 192 1052 418 60 . Thermal 1783 | 385 76 594 566 62 . . . 100 . Explosive 1151 | . . 153 237 89 . . 342 330 . Electromagnetic 189 | 28 . . 161 . . . . . . Impact . | . . . . . . . . . . Slashing . | . . . . . . . . . . Piercing . | . . . . . . . . . . Highest Corruption 19 | . 2 . . . . 10 6 19 . Average Corruption 7 | . 2 . . . . 8 6 15 . Corruption Purged 4 | . . . . . . 4 . . . Corruption Blocked . | . . . . . . . . . . Effects 69 | . 10 . . . . 32 5 22 . Message Errors 14 | . 2 . . . . 9 . 3 . Matter Fused 15 | . 4 . . . . 7 1 3 . Heat Flow Errors 8 | . 2 . . . . 4 . 2 . Energy Discharges 4 | . . . . . . 1 . 3 . Parts Rejected 2 | . . . . . . 1 1 . . Parts Fused 1 | . . . . . . 1 . . . Data Loss (minor) 10 | . 1 . . . . 2 2 5 . Data Loss (major) 3 | . 1 . . . . 2 . . . Misfires 3 | . . . . . . 1 1 1 . Alerts 3 | . . . . . . 3 . . . Misdirections 5 | . . . . . . . . 5 . Weapon Failures 1 | . . . . . . 1 . . . Overload Shots . | . . . . . . . . . . Overflow Damage 51 | . . . . 24 . 15 . 12 . Projectiles 35 | . . . . 20 . 15 . . . Explosions 16 | . . . . 4 . . . 12 . Melee . | . . . . . . . . . . Knockbacks 5 | . . 1 . 1 . 3 . . . Impact 2 | . . 1 . 1 . . . . . Kinetic 2 | . . . . . . 2 . . . Secondary 1 | . . . . . . 1 . . . Self-Inflicted Damage 262 | . . . 5 19 . . 50 135 53 Shots 8 | . . . 1 1 . . 2 3 1 Rammed 36 | . 5 2 4 4 5 1 . 15 . Targets Rammed 42 | . 7 2 4 6 7 1 . 15 . Kicked . | . . . . . . . . . . Crushed 6 | . 2 . . 2 2 . . . . Highest Temperature 250 | 156 219 23 239 112 15 250 78 148 . Average Temperature 42 | 49 41 6 47 27 7 55 38 37 . Received Heat Transfer 944 | . 141 123 324 99 18 77 . 162 . Siege Activations . | . . . . . . . . . . Martial Activations . | . . . . . . . . . . Shielding Activations . | . . . . . . . . . . Robots Disrupted . | . . . . . . . . . . Combat Hostiles . | . . . . . . . . . . Robots Corrupted . | . . . . . . . . . . Combat Hostiles . | . . . . . . . . . . Parts Fried . | . . . . . . . . . . Impact Corruptions . | . . . . . . . . . . Robots Melted 1 | . . 1 . . . . . . . Combat Hostiles 1 | . . 1 . . . . . . . Parts Melted 11 | 5 1 4 . . . 1 . . . Heat Transferred 4261 | 1517 222 1073 925 80 . . . 444 . Parts Sabotaged . | . . . . . . . . . . Parts Stolen . | . . . . . . . . . . Parts Stripped . | . . . . . . . . . . Power Chain Reactions . | . . . . . . . . . . Alert | -11 -10 -9 -8 -8 -8 -6 -6 -6 -6 ------- Run | Yrd Mat Mat Mat Sto Rec Fac Was Fac Low Maximum Alert Level 2 | . 1 1 1 2 . 1 . 1 . Low Security (%) 89 | 100 94 78 97 51 100 96 100 91 . Level 1 9 | . 5 21 2 38 . 3 . 8 . Level 2 1 | . . . . 10 . . . . . Level 3 . | . . . . . . . . . . Level 4 . | . . . . . . . . . . Level 5 . | . . . . . . . . . . High Security . | . . . . . . . . . . Max Security . | . . . . . . . . . . Peak Influence 496 | 10 212 366 204 496 186 214 21 386 . Initial 214 | . . 41 139 79 186 214 21 . . Average 95 | 1 98 100 95 219 66 65 4 75 . Influence Increases 3977 | 70 446 654 505 879 249 611 20 543 . Destroy 0b10 Robot/C 1860 | . 280 420 320 380 60 240 . 160 . Destroy 0b10 Robot/NC 270 | 70 35 55 50 40 10 10 . . . Destroy Leader 460 | . 70 100 80 136 . 54 . 20 . Allied During Kill 337 | . . . . 192 49 96 . . . Successful Hack 39 | . 15 8 8 . 8 . . . . Select Force Hacks 120 | . . . . . 120 . . . . Disable Machine 135 | . . . 15 90 . . . 30 . Destroy Structure 121 | . 1 11 17 26 2 11 20 33 . Advance Influence 200 | . . . . . . 200 . . . Partial Spotted 30 | . . . . . . . . 30 . Lose Combat Pursuer 405 | . 45 60 15 15 . . . 270 . Influence Decreases 3740 | 70 347 423 647 589 693 584 81 165 141 Entered New Map 851 | . . 58 191 109 292 20 40 . 141 Time Decay 2629 | 70 347 365 456 440 401 393 32 125 . Lost Part 59 | . . . . . . 10 9 40 . Lost Ally 201 | . . . . 40 . 161 . . . Squads Dispatched 16 | . 2 1 3 2 . 6 . 2 . Investigation 3 | . 1 1 . . . 1 . . . Extermination 4 | . . . . . . 3 . 1 . Reinforcement 7 | . 1 . 2 1 . 2 . 1 . Assault . | . . . . . . . . . . Garrison 2 | . . . 1 1 . . . . . Intercept . | . . . . . . . . . . Searches Triggered . | . . . . . . . . . . Construction Impeded 1 | . . . 1 . . . . . . Haulers Reinforced . | . . . . . . . . . . Active Scanning Responses . | . . . . . . . . . . Cargo Convoy Interrupts . | . . . . . . . . . . Stealth | -11 -10 -9 -8 -8 -8 -6 -6 -6 -6 --------- Run | Yrd Mat Mat Mat Sto Rec Fac Was Fac Low Distress Signals 10 | . 1 4 2 2 . . . 1 . Communications Jammed . | . . . . . . . . . . Distress Signals . | . . . . . . . . . . Times Spotted 148 | . 22 27 24 22 1 18 6 28 . Peak Tracking Total 8 | . 5 6 5 3 1 3 6 8 . Tactical Retreats 14 | . 3 1 1 1 . . . 8 . Traps | -11 -10 -9 -8 -8 -8 -6 -6 -6 -6 ------- Run | Yrd Mat Mat Mat Sto Rec Fac Was Fac Low Traps Triggered 10 | . 2 . . . . 5 . 3 . Indirectly . | . . . . . . . . . . Trap Hack Attempts . | . . . . . . . . . . Triggered . | . . . . . . . . . . Disarmed . | . . . . . . . . . . Reprogrammed . | . . . . . . . . . . Reused . | . . . . . . . . . . Traps Extracted . | . . . . . . . . . . Installed . | . . . . . . . . . . Triggered . | . . . . . . . . . . Machines | -11 -10 -9 -8 -8 -8 -6 -6 -6 -6 ---------- Run | Yrd Mat Mat Mat Sto Rec Fac Was Fac Low Machines Disabled 9 | . . . 1 6 . . . 2 . Max in Single Turn 1 | . . . 1 1 . . . 1 . Garrison Access 1 | . . . . 1 . . . . . Machines Repaired . | . . . . . . . . . . Machines Dismantled . | . . . . . . . . . . Machines Sabotaged . | . . . . . . . . . . Overloaded Fab Kills . | . . . . . . . . . . Hacking | -11 -10 -9 -8 -8 -8 -6 -6 -6 -6 --------- Run | Yrd Mat Mat Mat Sto Rec Fac Was Fac Low Machines Accessed 25 | . 6 4 2 2 9 1 . 1 . Terminals 17 | . 6 3 1 1 5 1 . . . Fabricators . | . . . . . . . . . . Repair Stations 2 | . . 1 1 . . . . . . Recycling Units 5 | . . . . . 4 . . 1 . Scanalyzers . | . . . . . . . . . . Garrison Access 1 | . . . . 1 . . . . . Total Hacks 60 | . 20 11 5 2 18 2 . 2 . Successful 31 | . 8 7 4 2 10 . . . . Failed 29 | . 12 4 1 . 8 2 . 2 . Catastrophic 2 | . . 1 . . . . . 1 . Database Lockouts . | . . . . . . . . . . Manual 48 | . 20 6 3 1 18 . . . . Terminals 46 | . 20 7 3 1 13 2 . . . Fabricators . | . . . . . . . . . . Repair Stations 6 | . . 4 2 . . . . . . Recycling Units 7 | . . . . . 5 . . 2 . Scanalyzers . | . . . . . . . . . . Garrison Access 1 | . . . . 1 . . . . . Terminal Hacks 2 | . . 1 . 1 . . . . . Prototype ID Bank 1 | . . 1 . . . . . . . Open Door 1 | . . . . 1 . . . . . Fabricator Hacks . | . . . . . . . . . . Repair Station Hacks 6 | . . 4 2 . . . . . . Scan Component 3 | . . 2 1 . . . . . . Repair 3 | . . 2 1 . . . . . . Recycling Unit Hacks . | . . . . . . . . . . Scanalyzer . | . . . . . . . . . . Garrison Access Hacks 1 | . . . . 1 . . . . . Seal Access 1 | . . . . 1 . . . . . Unauthorized Hacks 22 | . 8 2 2 . 10 . . . . Terminals 18 | . 8 2 2 . 6 . . . . Botnet 4 | . 2 . 1 . 1 . . . . Operators 1 | . 1 . . . . . . . . Skim 13 | . 5 2 1 . 5 . . . . Fabricators . | . . . . . . . . . . Repair Stations . | . . . . . . . . . . Recycling Units 4 | . . . . . 4 . . . . Tunnel 4 | . . . . . 4 . . . . Scanalyzers . | . . . . . . . . . . Garrison Access . | . . . . . . . . . . Data Cores Recovered . | . . . . . . . . . . Used . | . . . . . . . . . . Hacking Detections 16 | . 4 4 1 1 4 1 . 1 . Full Trace Events 1 | . . 1 . . . . . . . Feedback Events . | . . . . . . . . . . Feedback Blocked . | . . . . . . . . . . Robot Schematics Acquired . | . . . . . . . . . . Robots Built . | . . . . . . . . . . Authchips . | . . . . . . . . . . Time . | . . . . . . . . . . Total Robot Build Rating . | . . . . . . . . . . Part Schematics Acquired . | . . . . . . . . . . Parts Built . | . . . . . . . . . . Authchips . | . . . . . . . . . . Time . | . . . . . . . . . . Total Part Build Rating . | . . . . . . . . . . Part Studies Acquired . | . . . . . . . . . . Parts Repaired 3 | . . 2 1 . . . . . . Time 103 | . . 77 26 . . . . . . Parts Recycled . | . . . . . . . . . . Recycled Matter . | . . . . . . . . . . Retrieved Matter . | . . . . . . . . . . Retrieved Components . | . . . . . . . . . . Parts Scanalyzed . | . . . . . . . . . . Part Schematics Acquired . | . . . . . . . . . . Parts Damaged . | . . . . . . . . . . Bothacking | -11 -10 -9 -8 -8 -8 -6 -6 -6 -6 ------------ Run | Yrd Mat Mat Mat Sto Rec Fac Was Fac Low Used RIF Installer . | . . . . . . . . . . Robots Hacked . | . . . . . . . . . . Non-combat . | . . . . . . . . . . Combat . | . . . . . . . . . . Robot Hacks Applied . | . . . . . . . . . . Relay Couplers Released . | . . . . . . . . . . Fabnet Peak Effective % . | . . . . . . . . . . Robots Rewired 11 | . . . . . 11 . . . . Allies Hacked . | . . . . . . . . . . Hacks Repelled . | . . . . . . . . . . Allies | -11 -10 -9 -8 -8 -8 -6 -6 -6 -6 -------- Run | Yrd Mat Mat Mat Sto Rec Fac Was Fac Low Total Allies 21 | . . . . 10 11 . . . . Largest Group 18 | . . . . 10 18 18 1 . . Highest-Rated Group 310 | . . . . 173 310 310 22 . . Highest-Rated Ally 29 | . . . . 29 29 29 22 . . Total Orders . | . . . . . . . . . . Ally Attacks 151 | . . . . 61 5 85 . . . Total Damage 2004 | . . . . 777 75 1152 . . . Kills 22 | . . . . 11 1 10 . . . Allies Corrupted 2 | . . . . . . 2 . . . Allies Melted . | . . . . . . . . . . Intel | -11 -10 -9 -8 -8 -8 -6 -6 -6 -6 ------- Run | Yrd Mat Mat Mat Sto Rec Fac Was Fac Low Active Infowar (turns) 3471 | 111 738 . 897 369 . 1238 118 . . Sensors 1691 | . . . 523 50 . 1017 101 . . Terrain 773 | . . . . . . 773 . . . Seismic 2898 | 111 738 . 374 319 . 1238 118 . . Robot Analysis Total . | . . . . . . . . . . Derelict Logs Recovered . | . . . . . . . . . . Drone Launches . | . . . . . . . . . . Drone Recoveries . | . . . . . . . . . . Exploration | -11 -10 -9 -8 -8 -8 -6 -6 -6 -6 ------------- Run | Yrd Mat Mat Mat Sto Rec Fac Was Fac Low Turns Passed 8503 | 503 1336 985 1316 1091 1318 1309 157 488 . Spaces Moved 4666 | 194 536 421 650 536 735 760 131 703 . Core 250 | 3 . . . . . . 75 172 . Treads 3885 | 191 536 421 650 536 735 760 56 . . Legs . | . . . . . . . . . . Wheels . | . . . . . . . . . . Hover 256 | . . . . . . . . 256 . Flight 275 | . . . . . . . . 275 . Fastest Speed 32 | 50 160 160 156 145 145 145 50 32 . Average Speed 138 | 158 168 160 159 153 145 152 91 55 . Slowest Speed 240 | 160 240 160 160 156 145 225 148 150 . Overloaded Moves . | . . . . . . . . . . Propulsion Burnouts . | . . . . . . . . . . Robots Hopped 5 | . . . . . . . . 5 . Potential Cave-ins . | . . . . . . . . . . Cave-ins Triggered . | . . . . . . . . . . Exploration Rate (%) 46 | 6 95 25 53 69 94 19 81 19 1 Regions Visited 9 Branch Regions 3 Pre-discovered Areas 6 | . 1 . . . 5 . . . . Known Exits Taken 6 | . 1 1 1 1 1 . . 1 . Unknown Exits Taken 1 | 1 . . . . . . . . . Scrap Searched . | . . . . . . . . . . Spaces Dug 7 | . . 3 . 2 . 2 . . . Terrain Destroyed 129 | . . 10 14 24 2 12 26 41 . Melee 3 | . . 3 . . . . . . . Projectile 33 | . . . 5 12 2 12 2 . . AOE 93 | . . 7 9 12 . . 24 41 . Terrain Rammed . | . . . . . . . . . . Walls Destroyed . | . . . . . . . . . . Machines Disabled . | . . . . . . . . . . Actions | -11 -10 -9 -8 -8 -8 -6 -6 -6 -6 --------- Run | Yrd Mat Mat Mat Sto Rec Fac Was Fac Low Total 6188 | 334 876 639 829 747 976 861 148 777 1 Wait 790 | 105 241 96 50 133 90 46 6 23 . Move 4649 | 193 535 420 649 535 734 760 130 693 . Hop 4 | . . . . . . . . 4 . Pick Up 67 | 2 15 19 14 8 . 5 . 4 . Fast Attach 27 | 7 2 1 2 . . 2 1 12 . Attach 11 | . . 2 2 . . 5 . 2 . Detach . | . . . . . . . . . . Swap 100 | 1 12 24 30 20 . 10 3 . . Drop 91 | . 12 23 27 17 . 7 . 5 . Fire 261 | 26 52 49 51 28 4 25 8 17 1 Melee 3 | . . 3 . . . . . . . Ram 17 | . . . . . . . . 17 . Kick . | . . . . . . . . . . Crush 27 | . 7 2 4 6 7 1 . . . Escape Stasis . | . . . . . . . . . . Rewire 141 | . . . . . 141 . . . . Trap . | . . . . . . . . . . Miscellaneous . | . . . . . . . . . . Route ------- -11/Scrapyard -10/Materials (discovered 6 exits: *Mat x3 / *Min x2 / Sub) -9/Materials (discovered 4 exits: *Mat x2 / *Min x2) -8/Materials (discovered 3 exits: [*Fac] / *Sto x2) -8/Storage -8/Recycling (discovered 2 exits: *Fac / Scr) -6/Factory (discovered 2 exits: Fac / Low) -6/Waste -6/Factory (discovered 2 exits: *Low / *Ext) -6/Lower Caves History --------- Turn | Location | Event 8 | -11/Scrapyard | Discovered new exit (range 14) 504 | -11/Scrapyard | Entered Materials 504 | -10/Materials | Discovered new exit (range 7) 505 | -10/Materials | Build established: Mutant 615 | -10/Materials | Discovered new exit (range 15) 835 | -10/Materials | Discovered new exit (range 16) 1453 | -10/Materials | Discovered new exit (range 15) 1487 | -10/Materials | Learned location of 1 exit from Storage 1544 | -10/Materials | Learned location of Recycling (-8) 1592 | -10/Materials | Identified exit to Materials 1592 | -10/Materials | Identified exit to Subcaves 1631 | -10/Materials | Learned Storage trap positions 1681 | -10/Materials | Learned location of 2 exits from Materials 1757 | -10/Materials | Learned 4 Recycling zone layouts 1809 | -10/Materials | Identified exit to Mines 1840 | -10/Materials | Entered another Materials area 1840 | -9/Materials | Evolved 2 slots: Propulsion x2 1841 | -9/Materials | Identified exit to Mines 1842 | -9/Materials | Identified exit to Materials 2394 | -9/Materials | Build established: Scavenger-Mutant 2762 | -9/Materials | Repaired Seismic Detector 2813 | -9/Materials | Repaired Adv. Beam Cannon 2825 | -9/Materials | Entered another Materials area 2825 | -8/Materials | Evolved 2 slots: Utility x1, Weapon x1 2826 | -8/Materials | Identified exit to Storage 3121 | -8/Materials | Build established: Scavenger-Gunner 3198 | -8/Materials | Repaired Lgt. Treads 3575 | -8/Materials | Discovered exit to Storage (range 15) 3583 | -8/Materials | Garrison activated, responded to threat 3760 | -8/Materials | Discovered new exit (range 16) 4141 | -8/Materials | Entered Storage 4142 | -8/Storage | Identified exit to Recycling 4143 | -8/Storage | Loaded intel: 16 trap records 4268 | -8/Storage | Garrison activated, responded to threat 4667 | -8/Storage | Assisted by bots powering up and referring to "LRC-V3" 4963 | -8/Storage | Build established: Commander-Gunner 5223 | -8/Storage | Used back door to open Recycling access 5232 | -8/Storage | Entered Recycling 5232 | -8/Recycling | Accompanied by 7 allies 5233 | -8/Recycling | Identified exit to Factory 5990 | -8/Recycling | Identified exit to Scraptown 6099 | -8/Recycling | Learned location of 2 exits from Factory 6138 | -8/Recycling | Learned location of 2 exits from Lower Caves 6169 | -8/Recycling | Learned location of 1 exit from Extension 6218 | -8/Recycling | Learned 4 Recycling zone layouts 6311 | -8/Recycling | Learned Storage security intel 6550 | -8/Recycling | Entered Factory 6550 | -6/Factory | Accompanied by 18 allies 6550 | -6/Factory | Evolved 4 slots: Power x1, Utility x3 6551 | -6/Factory | Identified exit to Lower Caves 6551 | -6/Factory | Identified exit to Factory 6819 | -6/Factory | Allied Derelicts emerged from ambush trap array 6976 | -6/Factory | Build established: Commander-Skirmisher 7241 | -6/Factory | System corruption reached 10% 7246 | -6/Factory | Lost 8 allies 7519 | -6/Factory | Spotted B-75 Beast 7538 | -6/Factory | Allies destroyed B-75 Beast 7599 | -6/Factory | Lost 6 allies 7828 | -6/Factory | Lost 3 allies 7859 | -6/Factory | Sucked down chute 7859 | -6/Factory | Entered Waste 7869 | -6/Waste | 1 allies followed down the chute 7874 | -6/Waste | Spotted C-40 Crusher 7899 | -6/Waste | Build established: Tank 7949 | -6/Waste | Spotted C-40 Crusher 7970 | -6/Waste | Crushed by Compactor (1 part destroyed, 1 dropped) 7973 | -6/Waste | Crushed by Compactor (1 part destroyed, 2 dropped) 7976 | -6/Waste | Crushed by Compactor (0 parts destroyed, 1 dropped) 7979 | -6/Waste | Crushed by Compactor (0 parts destroyed, 1 dropped) 7979 | -6/Waste | Released all parts (7) 7983 | -6/Waste | Spotted C-40 Crusher 7987 | -6/Waste | Spotted C-40 Crusher 8003 | -6/Waste | Spotted C-40 Crusher 8009 | -6/Waste | Spotted C-40 Crusher 8011 | -6/Waste | Discovered new exit (range 11) 8016 | -6/Waste | Entered Factory 8271 | -6/Factory | Build established: Mutant 8381 | -6/Factory | Lost 4 parts (3n1w) 8388 | -6/Factory | Discovered new exit (range 7) 8389 | -6/Factory | Identified exit to Extension 8445 | -6/Factory | Discovered exit to Lower Caves (range 14) 8461 | -6/Factory | Core integrity fell below 50% 8474 | -6/Factory | Core integrity fell below 20% 8504 | -6/Factory | Entered Lower Caves 8504 | -6/Lower Caves | Destroyed self with Heavy Missile Launcher Last Messages --------------- 08457_ Adv. Signal Interpreter broken. 08457_ Destabilizing: Short circuit. 08459_ Slammed into S-27 Virus. 08460_ Destabilizing: Core damaged (-42). 08461_ Slammed into S-27 Virus. 08471_ System corrupted: Component data lost. 08471_ Slammed into S-27 Virus. 08476_ S-27 Virus destroyed. 08478_ Destroyed Lgt. Nuclear Core. 08478_ S-27 Virus destroyed. 08478_ Terminal disabled. 08480_ The unstable cave ceiling collapses. 08483_ Autogun crushed. 08484_ The unstable cave ceiling collapses. 08488_ Acquired 25 matter. 08491_ S-27 Virus destroyed. 08498_ Acquired 12 matter. 08499_ Acquired 19 matter. LOCATION=LOWER CAVES GOAL=ESCAPE Map ----- +----------------------------------------------------+ | ??????????????????????????????????????????????? | | ??????????????????????????????????????????????? | | ??????????????????????????????????????????????? | | ??????????????????????????????????????????????? | | ??????????????????????????????????????????????? | | ??????????????????????????????????????????????? | | ??????????????????????????????????????????????? | | ??????????????????????????????????????????????? | | ??????????????????????????????????????????????? | | ??????????????????????????????????????????????? | | ??????????????????????????????????????????????? | | ??????????????????????????????????????????????? | | ??????????????????????????????????????????????? | | ?????????????????????????????#????????????????? | | ???????????????????????????? #????????????????? | | ?????????????????????? ????? #????????????????? | | ?????????????????????? ???? #????????????????? | | ?????????????????????? ??? #????????????????? | | ?????????????????????? ??? #????????????????? | | ??????????????????????? #?? #????????????????? | | ??????????????????####? ## ##???????????????? | | ??????????????????# ""##" ##??????????????? | | ???????????????????" " " #??????????????? | | ??????????????????#" #??????????????? | | ????????????????????" "" ???????????????? | | ???????????????????????#"@ #??????????????????? | | ??????????????????????# ##??????????????????? | | ??????????????????????# #???????????????????? | | ??????????????????????# #???????????????????? | | ?????????????????????? ##???????????????????? | | ?????????????????????####?????????????????????? | | ??????????????????????????????????????????????? | | ??????????????????????????????????????????????? | | ??????????????????????????????????????????????? | | ??????????????????????????????????????????????? | | ??????????????????????????????????????????????? | | ??????????????????????????????????????????????? | | ??????????????????????????????????????????????? | | ??????????????????????????????????????????????? | | ??????????????????????????????????????????????? | | ??????????????????????????????????????????????? | | ??????????????????????????????????????????????? | | ??????????????????????????????????????????????? | | ??????????????????????????????????????????????? | | ??????????????????????????????????????????????? | | ??????????????????????????????????????????????? | | ??????????????????????????????????????????????? | | ??????????????????????????????????????????????? | | ??????????????????????????????????????????????? | | ??????????????????????????????????????????????? | +----------------------------------------------------+ Best States ------------- Heat Dissipation 75 Energy Generation 23 Energy Capacity 460 Matter Stores 300 Matter Capacity 300 Sight Range 16 Robot Scan Range 15 Terrain Scan Range 16 Terrain Scan Density 10 Armor Coverage 375 Evasion (%) 63 Targeting Accuracy 8 Recoil Reduction 4 Offensive Hacking 12 Item Schematics ----------------- None Robot Schematics ------------------ None Fabricated ------------ Nothing Repaired ---------- Adv. Beam Cannon | 39% | -9/Materials Lgt. Treads | 42% | -8/Materials Studied --------- None Alien Tech Used ----------------- None Achievements -------------- None Challenges ------------ None Game ------ Seed TargetRagnarokPick Manual? 0 Play Time 00:58:42 Cumulative 246.0 hours Start 2025.11.06 @ 16:48:03 End 2025.11.06 @ 18:40:13 Sessions 1 Manual Loads 0 Difficulty Rogue Special Mode None Game No. 378 Rogue 376 Adventurer 0 Explorer 2 Win Type - Total 5 Types 3/0/1/1/0/0/0/0/0/0 Lore% 54 Gallery% 63 Achievement% 43 Wizard Run 0 Options --------- Layout 2 ASCII 0 Keyboard 1 Movement Arrows Keybinds 0 Fullscreen 1 Font 28/SmallcapsGlow Map View 50x49 Zoom Use 0% Tactical HUD 1 Map Filters NONE Filters NONE Steam 1 RUN: 8c692ab7-ceeb-4265-bd8e-4edebe208dac